bitfinex-derivatives/quotes_ETHF0:USTF0_20250103
["timestamp","ask_amount","ask_price","bid_price","bid_amount"]
[1735882896298,0.28984,3452.8,3452.7,2.13137708]
[1735882899299,0.28984,3452.8,3452.7,2.42122708]
[1735882899799,5.47213147,3453.2,3452.7,2.13137708]
[1735882900005,5.47213147,3453.2,3453.0,1.00737708]
[1735882900209,0.28981,3453.1,3453.0,1.00737708]
[1735882903209,2.55414147,3453.1,3453.0,1.00737708]
[1735882904000,2.26433147,3453.1,3453.0,1.29719708]
[1735882904209,2.26433147,3453.1,3453.0,1.00737708]
[1735882905608,2.55414147,3453.2,3453.0,1.00737708]
[1735882905914,2.55416147,3453.2,3453.0,1.29720708]
[1735882906414,2.55416147,3453.2,3453.0,1.00737708]
[1735882907016,0.28983,3453.1,3453.0,1.00737708]
[1735882907409,2.55416147,3453.1,3453.0,1.00737708]
[1735882908116,2.26433147,3453.1,3452.8,1.00737708]
[1735882908317,0.28987,3452.7,3452.5,7.12442912]
[1735882908518,0.28987,3452.7,3452.6,2.13037708]
[1735882909225,0.28987,3452.7,3452.6,1.00737708]
[1735882909426,0.28988,3452.5,3452.4,6.83454912]
[1735882909723,4.50505708,3452.5,3452.4,6.83454912]
[1735882910225,45.30505708,3452.5,3452.4,6.83454912]
[1735882910427,45.30505708,3452.5,3452.0,7.8419262]
[1735882910428,0.28991,3452.1,3452.0,7.8419262]
[1735882911528,3.49771,3452.1,3452.0,7.8419262]
[1735882912229,0.28993,3451.9,3451.8,1.123]
[1735882912625,0.28993,3451.9,3451.6,2.58362046]
[1735882912825,0.28993,3451.9,3451.7,1.123]
[1735882913228,0.28993,3452.0,3451.7,1.41295]
[1735882913428,2.26820402,3451.8,3451.7,1.41295]
[1735882914527,2.55813402,3451.9,3451.7,1.41295]
[1735882915029,2.55813402,3451.9,3451.7,1.123]
[1735882916431,2.55813402,3451.9,3451.7,1.41294]
[1735882916928,0.28993,3451.9,3451.7,1.41294]
[1735882921728,5.47600402,3452.1,3451.7,1.123]
[1735882921928,0.28994,3451.8,3451.7,1.123]
[1735882924032,7.76967448,3452.1,3451.6,1.124]
[1735882924239,0.29,3451.1,3451.0,2.29367046]
[1735882924432,0.29,3451.1,3451.0,3.41767046]
[1735882925338,3.2078,3451.2,3450.9,6.83454912]
[1735882925538,0.29,3451.0,3450.9,7.95854912]
[1735882926135,41.09,3451.0,3450.9,1.124]
[1735882926536,40.8,3451.0,3450.6,2.58370046]
[1735882926839,0.29002,3450.9,3450.7,1.41403]
[1735882927736,0.29002,3450.9,3450.7,1.124]
[1735882928543,40.8,3451.0,3450.6,2.29367046]
[1735882928740,0.29003,3450.7,3450.6,2.29367046]
[1735882929241,0.29003,3450.7,3450.6,2.58371046]
[1735882933347,0.29002,3450.9,3450.8,0.29002]
[1735882934641,0.29002,3450.9,3450.6,2.29367046]
[1735882934841,0.29002,3450.9,3450.7,0.29002]
[1735882936639,40.8,3451.0,3450.7,0.29002]
[1735882936640,0.29002,3450.8,3450.7,0.29002]
[1735882938937,0.29002,3450.8,3450.7,1.41402]
[1735882940452,0.29002,3450.9,3450.8,0.29002]
[1735882940650,0.29002,3450.9,3450.7,1.41402]
[1735882941451,0.29002,3450.9,3450.8,0.29002]
[1735882944257,0.29002,3450.9,3450.8,1.29879094]
[1735882944956,40.8,3451.0,3450.8,1.29879094]
[1735882945154,41.09001,3451.0,3450.8,1.29879094]
[1735882945357,40.8,3451.0,3450.8,1.29879094]
[1735882945658,0.29001,3450.9,3450.8,1.29879094]
[1735882948862,41.09001,3451.0,3450.8,1.29879094]
[1735882952760,44.29781,3451.0,3450.8,1.29879094]
[1735882952962,44.29781,3451.0,3450.9,0.29001]
[1735882953161,44.29781,3451.0,3450.8,1.29879094]
[1735882953162,44.0078,3451.0,3450.8,1.29879094]
[1735882953364,0.29001,3450.9,3450.8,1.29879094]
[1735882953563,44.29781,3451.0,3450.8,1.29879094]
[1735882953864,44.29781,3451.0,3450.8,1.00877094]
[1735882954065,44.29781,3451.0,3450.8,1.29879094]
[1735882954663,44.29781,3451.0,3450.8,1.00877094]
[1735882954962,2.26820402,3451.2,3451.1,0.29]
[1735882955163,2.26820402,3451.2,3451.1,1.29877094]
[1735882955164,1.56800402,3451.2,3451.1,1.29877094]
[1735882955360,6.61010603,3451.4,3451.3,0.28998]
[1735882955565,6.61010603,3451.4,3451.3,1.29875094]
[1735882955764,3.2078,3451.4,3451.3,1.29875094]
[1735882955964,3.2078,3451.4,3451.3,0.28998]
[1735882956166,3.49777,3451.4,3451.3,1.00877094]
[1735882956365,3.49777,3451.4,3451.3,1.29875094]
[1735882956578,3.49777,3451.4,3451.3,1.00877094]
[1735882957777,3.49777,3451.4,3451.3,1.29875094]
[1735882959082,3.49777,3451.4,3451.3,1.00877094]
[1735882960881,0.28998,3451.3,3451.2,1.124]
[1735882964680,3.2078,3451.4,3451.2,1.124]
[1735882964987,3.2078,3451.4,3451.3,1.29875094]
[1735882968679,0.28996,3451.6,3451.3,1.00877094]
[1735882968881,0.28996,3451.6,3451.5,1.29873094]
[1735882969479,3.69226603,3451.6,3451.5,1.29873094]
[1735882970388,3.40230603,3451.6,3451.5,1.29873094]
[1735882972084,47.70005603,3451.7,3451.5,1.00877094]
[1735882972289,47.70005603,3451.7,3451.6,0.28995]
[1735882972890,47.41010603,3451.7,3451.6,0.28995]
[1735882973387,44.0078,3451.7,3451.6,0.28995]
[1735882979696,40.8,3451.7,3451.6,0.28995]
[1735882979890,44.0078,3451.7,3451.6,0.28995]
[1735882980097,3.2078,3451.7,3451.6,0.28995]
[1735882982704,3.40230603,3452.2,3452.1,0.28991]
[1735882982894,3.40230603,3452.2,3452.1,2.42168094]
[1735882984305,5.95572808,3452.6,3452.1,2.42168094]
[1735882984306,0.28987,3452.6,3452.1,2.13177094]
[1735882984507,0.28989,3452.4,3452.2,0.2899]
[1735882984804,0.28988,3452.5,3452.3,1.29866094]
[1735882985204,3.40230603,3452.8,3452.3,1.00877094]
[1735882985397,3.40230603,3452.8,3452.6,1.00877094]
[1735882985398,0.28986,3452.7,3452.6,1.00877094]
[1735882988707,41.08986,3452.7,3452.6,1.00877094]
[1735882989805,3.49765,3452.8,3452.6,1.00877094]
[1735882990307,41.08986,3452.7,3452.6,1.00877094]
[1735882990502,0.28989,3452.4,3452.2,0.2899]
[1735882990703,3.2078,3452.4,3452.3,1.41289]
[1735882991301,3.49769,3452.4,3452.3,1.123]
[1735882991700,3.2078,3452.4,3452.3,1.123]
[1735882992003,3.49769,3452.4,3452.3,1.41289]
[1735882992903,3.49769,3452.4,3452.3,1.123]
[1735882994207,3.49769,3452.4,3452.3,1.41289]
[1735882994402,3.2078,3452.4,3452.3,1.41289]
[1735882994609,3.49769,3452.4,3452.3,1.41289]
[1735882994809,3.2078,3452.4,3452.3,1.41289]
[1735882995203,3.2078,3452.4,3452.3,1.123]
[1735882995406,4.21657094,3452.4,3451.6,3.2078]
[1735882995605,3.2078,3452.4,3452.1,1.00877094]
[1735882995806,0.2899,3452.3,3452.1,0.2899]
[1735882996013,0.2899,3452.3,3452.2,1.00877094]
[1735882997402,3.49769,3452.4,3452.2,1.00877094]
[1735882997608,3.2078,3452.4,3452.2,1.00877094]
[1735882997808,3.49769,3452.4,3452.2,1.29867094]
[1735882998009,0.28989,3452.3,3452.2,1.00877094]
[1735882998412,3.2078,3452.4,3452.2,1.00877094]
[1735882998615,3.2078,3452.4,3452.3,0.28989]
[1735882999510,3.2078,3452.4,3452.3,1.29866094]
[1735883002110,0.28985,3452.8,3452.3,1.00877094]
[1735883002311,0.28985,3452.8,3452.7,1.00877094]
[1735883002513,0.28985,3452.8,3452.7,1.29863094]
[1735883002713,0.28985,3452.8,3452.7,1.00877094]
[1735883003313,0.28985,3452.9,3452.7,1.29863094]
[1735883004306,3.49764,3453.0,3452.7,1.29863094]
[1735883004510,3.49764,3453.0,3452.9,1.00877094]
[1735883005311,3.2078,3453.0,3452.9,1.29861094]
[1735883005912,3.2078,3453.0,3452.9,2.30738188]
[1735883008013,3.2078,3453.0,3452.9,1.29861094]
[1735883008331,3.2078,3453.0,3452.9,2.58173228]
[1735883013825,3.2078,3453.7,3452.9,5.49969228]
[1735883014026,3.2078,3453.7,3453.6,0.28976]
[1735883014415,3.40230603,3453.8,3453.7,0.28976]
[1735883014620,3.40230603,3454.0,3453.6,2.29189228]
[1735883014816,44.49204603,3454.0,3453.8,0.28975]
[1735883015018,44.20230603,3454.0,3453.6,2.29189228]
[1735883015218,0.28975,3453.8,3453.7,0.28975]
[1735883015425,44.20230603,3454.0,3453.7,0.28975]
[1735883015426,0.28975,3453.9,3453.7,0.28975]
[1735883017428,0.28975,3453.9,3453.6,2.29189228]
[1735883017627,0.28975,3453.9,3453.7,0.28976]
[1735883018421,40.8,3454.0,3453.6,2.29189228]
[1735883018623,3.2078,3453.7,3453.5,1.41277]
[1735883020128,3.2078,3453.7,3453.5,1.123]
[1735883020331,3.2078,3453.7,3453.6,0.28977]
[1735883024732,3.2078,3453.7,3453.6,2.58166228]
[1735883025629,6.61010603,3454.1,3453.9,0.28974]
[1735883025837,6.61010603,3454.1,3454.0,2.58162228]
[1735883026334,6.61010603,3454.1,3454.0,3.70462228]
[1735883026632,3.40230603,3454.1,3454.0,3.70462228]
[1735883027134,3.49752,3454.2,3454.0,3.70462228]
[1735883027629,0.28972,3454.2,3454.0,3.70462228]
[1735883028138,3.49752,3454.2,3454.0,3.70462228]
[1735883029037,3.2078,3454.2,3454.1,0.28972]
[1735883029535,3.2078,3454.2,3454.0,3.70462228]
[1735883030938,0.28972,3454.3,3454.0,3.70462228]
[1735883031337,3.2078,3454.2,3454.0,3.70462228]
[1735883032239,3.2078,3454.2,3454.1,1.00688306]
[1735883033040,3.49752,3454.2,3454.1,1.00688306]
[1735883037238,0.28974,3454.0,3453.0,7.75479184]
[1735883037442,1.00688306,3454.1,3453.1,1.123]
[1735883037644,3.49756,3453.7,3453.6,1.00688306]
[1735883037945,3.2078,3453.7,3453.6,1.00688306]
[1735883038645,3.2078,3453.7,3453.6,1.29665306]
[1735883042833,3.49756,3453.7,3453.6,1.29665306]
[1735883043140,3.2078,3453.7,3453.0,3.2078]
[1735883043443,0.28979,3453.4,3453.2,0.2898]
[1735883043946,0.28978,3453.5,3453.3,0.28979]
[1735883046050,0.28978,3453.5,3453.4,0.28979]
[1735883046244,0.28978,3453.5,3453.4,1.29667306]
[1735883047244,0.28978,3453.5,3453.4,1.00688306]
[1735883047745,0.28978,3453.5,3453.1,1.123]
[1735883047746,0.2898,3453.3,3453.2,0.2898]
[1735883047946,0.2898,3453.3,3453.2,2.12888306]
[1735883048246,0.2898,3453.3,3453.2,2.41868306]
[1735883048452,3.2078,3453.7,3453.3,0.28979]
[1735883048453,0.28979,3453.4,3453.3,0.28979]
[1735883050745,3.2078,3453.7,3453.2,2.12888306]
[1735883050746,3.40230603,3453.5,3453.2,2.12888306]
[1735883050943,3.69208603,3453.5,3453.4,1.00688306]
[1735883051847,0.28978,3453.5,3453.4,1.00688306]
[1735883052648,4.53268647,3453.6,3453.3,0.28979]
[1735883052649,0.28979,3453.4,3453.3,0.28979]
[1735883053049,0.28981,3453.2,3452.9,0.28983]
[1735883053250,0.28981,3453.2,3453.1,1.29669306]
[1735883053951,0.28981,3453.2,3453.1,1.00688306]
[1735883054651,3.4976,3453.3,3453.2,0.2898]
[1735883055353,3.4976,3453.3,3453.1,1.00688306]
[1735883055552,3.4976,3453.3,3453.1,1.29669306]
[1735883056758,0.2898,3453.2,3453.1,1.29669306]
[1735883057442,3.69419814,3453.2,3453.1,1.29669306]
[1735883058264,3.69419814,3453.2,3453.1,1.00688306]
[1735883058676,3.69419814,3453.2,3453.1,1.29669306]
[1735883059064,3.69419814,3453.2,3453.1,1.00688306]
[1735883060266,3.69419814,3453.2,3453.1,1.29669306]
[1735883061967,3.40439814,3453.2,3453.1,1.29669306]
[1735883062872,6.61219814,3453.3,3453.2,0.2898]
[1735883063763,6.90199814,3453.3,3453.1,1.00688306]
[1735883063974,6.90199814,3453.3,3453.2,0.2898]
[1735883065769,6.61219814,3453.3,3453.1,1.00688306]
[1735883065972,0.2898,3453.2,3453.1,1.29669306]
[1735883066170,0.2898,3453.2,3453.1,1.00688306]
[1735883066375,0.2898,3453.2,3453.1,1.29669306]
[1735883066574,0.2898,3453.2,3453.1,1.00688306]
[1735883066776,0.28982,3453.0,3452.9,1.123]
[1735883067276,41.08982,3453.0,3452.9,1.123]
[1735883067479,41.08982,3453.0,3452.9,1.41283]
[1735883068272,41.08982,3453.0,3452.9,1.123]
[1735883068874,41.08982,3453.0,3452.9,1.41283]
[1735883069178,41.08982,3453.0,3452.9,1.123]
[1735883069378,41.08982,3453.0,3452.9,1.41283]
[1735883069773,41.08982,3453.0,3452.9,1.123]
[1735883071979,0.28982,3453.0,3452.9,1.123]
[1735883072774,0.28982,3453.0,3452.9,1.41283]
[1735883073986,0.28982,3453.0,3452.9,1.123]
[1735883075486,2.55746414,3453.0,3452.9,1.123]
[1735883076288,2.55746414,3453.0,3452.9,1.41283]
[1735883076881,2.55746414,3453.0,3452.9,1.123]
[1735883078281,5.76526414,3453.0,3452.9,1.41283]
[1735883078486,5.76526414,3453.0,3452.9,1.123]
[1735883078991,5.76526414,3453.0,3452.9,1.41283]
[1735883079284,3.49762,3453.0,3452.9,1.41283]
[1735883079680,3.49762,3453.0,3452.9,1.123]
[1735883080286,3.2078,3453.0,3452.8,1.29671306]
[1735883080475,0.28983,3452.9,3452.8,1.29671306]
[1735883082191,3.69422814,3452.9,3452.8,1.00688306]
[1735883082382,0.28985,3452.7,3452.6,1.00688306]
[1735883083185,3.69424814,3452.7,3452.6,1.00688306]
[1735883084086,3.40439814,3452.7,3452.2,3.2078]
[1735883084290,3.40439814,3452.7,3452.5,1.00688306]
[1735883084488,0.28986,3452.6,3452.5,1.00688306]
[1735883086193,3.69313946,3452.6,3452.5,1.00688306]
[1735883086394,3.69313946,3452.6,3452.5,1.29674306]
[1735883087388,3.69313946,3452.6,3452.5,1.00688306]
[1735883088093,3.69313946,3452.6,3452.5,1.29674306]
[1735883088890,3.40327946,3452.6,3452.2,4.3308]
[1735883089093,3.40327946,3452.6,3452.3,1.00688306]
[1735883089297,0.28986,3452.5,3452.4,0.28986]
[1735883090000,3.40327946,3452.6,3452.3,1.00688306]
[1735883090294,3.69313946,3452.6,3452.5,1.29674306]
[1735883093791,3.69313946,3452.6,3452.5,1.00688306]
[1735883094391,3.69313946,3452.6,3452.5,1.29674306]
[1735883095090,3.69313946,3452.6,3452.5,0.28986]
[1735883095492,0.28987,3452.5,3452.4,0.28987]
[1735883096692,0.28986,3452.6,3452.4,0.28987]
[1735883096893,3.40335459,3452.5,3452.4,0.28987]
[1735883099399,3.69321459,3452.5,3452.4,0.28987]
[1735883100899,0.28987,3452.4,3452.3,1.00688306]
[1735883101088,3.49767,3452.4,3452.2,0.28988]
[1735883101492,3.49767,3452.4,3452.3,0.28988]
[1735883102101,3.49767,3452.4,3451.9,0.19773903]
[1735883102102,2.26771542,3452.3,3451.9,0.19773903]
[1735883102401,0.2899,3452.0,3451.9,2.61753209]
[1735883102600,0.2899,3452.0,3451.9,1.32073903]
[1735883103492,0.2899,3452.0,3451.9,1.123]
[1735883104307,0.28991,3451.9,3451.7,0.28993]
[1735883104601,0.28993,3451.8,3451.6,0.28993]
[1735883104804,41.08993,3451.8,3451.6,0.28993]
[1735883105403,0.28993,3451.7,3451.5,1.41294]
[1735883105703,0.28993,3451.7,3451.5,2.41982306]
[1735883105897,0.28993,3451.7,3451.5,2.12988306]
[1735883106099,2.55553307,3451.7,3451.6,0.28994]
[1735883106507,2.26560307,3451.7,3451.5,2.12988306]
[1735883106704,2.26560307,3451.7,3451.6,0.28994]
[1735883106907,2.55553307,3451.7,3451.6,0.28994]
[1735883107100,2.55553307,3451.7,3451.5,2.41982306]
[1735883107893,2.55553307,3451.7,3451.5,1.29682306]
[1735883108495,0.28994,3451.6,3451.5,1.00688306]
[1735883108695,2.55553307,3451.7,3451.5,1.29682306]
[1735883108899,0.28994,3451.6,3451.5,1.29682306]
[1735883110206,0.28994,3451.6,3451.5,1.00688306]
[1735883111005,0.28994,3451.7,3451.5,1.29683306]
[1735883111204,2.26560307,3451.8,3451.5,1.29683306]
[1735883111205,0.28994,3451.6,3451.5,1.29683306]
[1735883112112,0.28994,3451.6,3451.5,1.00688306]
[1735883113408,0.28994,3451.6,3451.5,1.29683306]
[1735883114309,3.49774,3451.6,3451.5,1.00688306]
[1735883115312,3.49774,3451.6,3451.5,1.29683306]
[1735883115511,3.49774,3451.6,3451.5,1.00688306]
[1735883116208,3.49774,3451.6,3451.5,1.29683306]
[1735883116408,3.49774,3451.6,3451.5,1.00688306]
[1735883117117,0.28994,3451.6,3451.5,1.00688306]
[1735883117312,3.49774,3451.6,3451.5,1.00688306]
[1735883121115,3.2078,3451.6,3451.3,2.12988306]
[1735883121314,0.28996,3451.4,3451.3,2.41984306]
[1735883121520,0.28995,3451.5,3451.4,0.28996]
[1735883123314,3.2078,3451.6,3451.3,2.12988306]
[1735883123621,0.28996,3451.5,3451.4,0.28995]
[1735883124409,0.28996,3451.5,3451.3,2.12988306]
[1735883124612,0.28996,3451.5,3451.4,0.28996]
[1735883125720,0.28996,3451.4,3451.3,1.123]
[1735883126217,0.28996,3451.4,3450.9,0.28999]
[1735883126218,41.80688306,3451.4,3450.9,0.28999]
[1735883126422,41.80688306,3451.4,3450.8,3.2078]
[1735883126423,0.29,3450.9,3450.8,3.4978]
[1735883126618,1.00688306,3451.1,3450.8,3.2078]
[1735883126816,0.29,3450.9,3450.8,4.50468306]
[1735883127321,0.29,3450.9,3450.8,1.00688306]
[1735883128517,0.29001,3450.8,3450.7,1.41301]
[1735883129918,0.29001,3450.8,3450.5,2.12988306]
[1735883130119,0.29001,3450.8,3450.7,0.29001]
[1735883130815,0.29001,3450.8,3450.5,2.12988306]
[1735883131014,0.29001,3450.8,3450.6,0.29002]
[1735883132417,0.29004,3450.5,3450.3,4.44804359]
[1735883132623,0.29004,3450.5,3450.3,5.45492665]
[1735883133718,4.21468306,3450.7,3450.3,3.03500359]
[1735883133925,0.29004,3450.4,3450.2,2.41993306]
[1735883134817,0.29005,3450.3,3450.2,2.41993306]
[1735883135219,0.29005,3450.3,3450.2,2.12988306]
[1735883135532,0.29004,3450.4,3450.2,2.41994306]
[1735883135822,1.00688306,3450.5,3450.2,2.41994306]
[1735883135823,0.29005,3450.3,3450.2,1.41306]
[1735883136016,0.29005,3450.4,3450.3,1.00688306]
[1735883138026,0.29005,3450.3,3450.2,1.123]
[1735883138425,0.29005,3450.3,3450.1,1.29695306]
[1735883138819,0.29005,3450.3,3450.1,1.00688306]
[1735883139329,1.00688306,3450.3,3449.9,3.2078]
[1735883139524,1.00688306,3450.1,3449.9,4.3308]
[1735883140023,0.29007,3450.0,3449.9,4.3308]
[1735883141116,0.29007,3450.0,3449.9,5.33768306]
[1735883141318,2.26560307,3450.4,3449.9,5.33768306]
[1735883141632,2.26560307,3450.4,3450.3,1.29693306]
[1735883142426,3.49782,3450.7,3450.5,0.29002]
[1735883142724,3.49782,3450.7,3450.5,1.29690306]
[1735883143317,3.2078,3450.7,3450.5,1.00688306]
[1735883143525,0.29002,3450.6,3450.5,1.00688306]
[1735883143924,0.29002,3450.6,3450.4,0.29004]
[1735883144328,0.29003,3450.5,3450.4,0.29004]
[1735883145131,0.29003,3450.5,3450.3,1.29692306]
[1735883145633,0.29003,3450.6,3450.3,2.12988306]
[1735883146029,0.29003,3450.6,3450.4,0.29004]
[1735883148035,41.09003,3450.6,3450.4,0.29004]
[1735883149133,41.09003,3450.6,3450.5,1.00688306]
[1735883149337,3.2078,3450.7,3450.5,1.00688306]
[1735883149534,2.26560307,3450.8,3450.5,1.00688306]
[1735883149737,2.26560307,3450.8,3450.7,1.29690306]
[1735883150435,45.62266647,3451.1,3450.9,0.29]
[1735883150436,0.28998,3451.1,3450.9,0.29]
[1735883150634,0.28998,3451.1,3451.0,1.00688306]
[1735883152232,0.28999,3451.0,3450.8,1.29688306]
[1735883152841,43.06560307,3451.2,3450.9,0.28999]
[1735883153035,43.06560307,3451.2,3450.8,1.00688306]
[1735883153239,0.28999,3451.0,3450.8,1.29688306]
[1735883155335,2.26560307,3451.1,3450.8,1.00688306]
[1735883155536,2.26560307,3451.1,3451.0,1.29687306]
[1735883155746,2.26560307,3451.1,3451.0,2.41987306]
[1735883156230,2.55557307,3451.2,3451.0,2.41987306]
[1735883157552,0.28997,3451.2,3451.0,2.41987306]
[1735883158928,2.55557307,3451.3,3451.1,0.28998]
[1735883159137,2.55557307,3451.3,3451.2,1.00688306]
[1735883160834,0.28998,3451.2,3451.0,2.41986306]
[1735883161035,0.28998,3451.1,3451.0,2.41986306]
[1735883162437,0.28998,3451.1,3451.0,2.12988306]
[1735883166551,2.26560307,3451.2,3451.0,2.12988306]
[1735883166746,2.55558307,3451.2,3451.1,0.28998]
[1735883167844,0.28998,3451.1,3451.0,2.41987306]
[1735883168444,2.55558307,3451.2,3451.1,0.28998]
[1735883168944,2.26560307,3451.2,3451.1,0.28998]
[1735883171644,6.89616461,3451.4,3451.2,0.28997]
[1735883171645,2.26560307,3451.3,3451.2,0.28997]
[1735883171951,2.26560307,3451.3,3451.2,1.29685306]
[1735883173046,6.60620461,3451.4,3451.3,0.28997]
[1735883173544,3.39840461,3451.4,3451.3,0.28997]
[1735883174549,2.26501586,3451.5,3451.4,0.28996]
[1735883174745,2.26501586,3451.5,3451.4,1.29684306]
[1735883175753,2.26501586,3451.5,3451.4,1.00688306]
[1735883175754,0.28995,3451.5,3451.4,1.00688306]
[1735883177754,0.28995,3451.5,3451.4,1.29684306]
[1735883179357,2.55495586,3451.6,3451.5,0.28995]
[1735883180056,2.26501586,3451.6,3451.5,0.28995]
[1735883180649,2.26501586,3451.6,3451.5,1.29683306]
[1735883181357,0.28993,3451.8,3451.7,0.28993]
[1735883181561,2.55493586,3451.9,3451.8,0.28992]
[1735883182262,2.26501586,3451.9,3451.8,0.28992]
[1735883182958,2.55493586,3451.9,3451.8,0.28992]
[1735883184255,2.55493586,3451.9,3451.7,2.41981306]
[1735883184863,2.26501586,3451.9,3451.7,2.12988306]
[1735883185165,2.26501586,3451.9,3451.8,0.28992]
[1735883186954,2.55493586,3451.9,3451.8,0.28992]
[1735883187267,0.28992,3451.9,3451.8,0.28992]
[1735883187765,0.28991,3452.0,3451.8,0.28992]
[1735883188265,2.55492586,3452.0,3451.8,0.28992]
[1735883189463,0.28992,3451.9,3451.8,0.28992]
[1735883191861,2.26501586,3452.1,3451.7,2.12988306]
[1735883192167,2.26501586,3452.1,3451.9,1.29679306]
[1735883192372,2.55491586,3452.1,3451.9,1.29679306]
[1735883192964,0.28991,3452.0,3451.9,1.00688306]
[1735883193362,2.26501586,3452.1,3451.7,2.41981306]
[1735883193571,0.28992,3451.9,3451.7,2.41981306]
[1735883195354,0.28992,3451.9,3451.7,1.29681306]
[1735883195557,0.28992,3451.8,3451.7,2.12988306]
[1735883195757,0.28992,3451.8,3451.7,2.41981306]
[1735883196669,0.28992,3451.9,3451.8,0.28992]
[1735883197160,3.68832461,3451.9,3451.8,0.28992]
[1735883197758,3.39840461,3451.9,3451.8,0.28992]
[1735883198760,3.39840461,3451.9,3451.7,2.12988306]
[1735883198962,0.28992,3451.8,3451.7,2.12988306]
[1735883199165,0.28992,3451.8,3451.7,1.123]
[1735883199468,3.49772,3451.8,3451.7,1.123]
[1735883200466,0.28994,3451.6,3451.5,2.12888306]
[1735883200773,0.28995,3451.5,3451.4,1.122]
[1735883201268,0.28995,3451.5,3451.4,1.41196]
[1735883201469,0.28995,3451.6,3451.4,1.41196]
[1735883202072,0.28995,3451.5,3451.4,1.122]
[1735883202369,3.68835461,3451.5,3451.4,1.122]
[1735883202765,0.28996,3451.4,3451.3,1.00688306]
[1735883202966,0.28997,3451.3,3451.2,1.122]
[1735883204975,3.68864,3451.3,3451.2,1.122]
[1735883205366,3.39867,3451.3,3451.0,1.00688306]
[1735883205566,0.28998,3451.2,3451.0,2.41987306]
[1735883206373,2.26537912,3451.1,3451.0,2.41987306]
[1735883210968,2.26537912,3451.1,3451.0,1.41299]
[1735883211174,2.55535912,3451.1,3451.0,2.41987306]
[1735883211874,3.68865,3451.2,3451.0,2.41987306]
[1735883212276,3.68865,3451.2,3451.0,2.12988306]
[1735883212576,3.68865,3451.2,3451.1,0.28998]
[1735883213276,3.68865,3451.2,3451.0,2.41987306]
[1735883217073,0.28998,3451.1,3451.0,2.41987306]
[1735883218373,0.28998,3451.1,3451.0,2.12988306]
[1735883219379,0.28998,3451.1,3451.0,2.41987306]
[1735883221075,0.28998,3451.1,3451.0,2.12988306]
[1735883221272,3.39867,3451.2,3451.0,2.12988306]
[1735883221582,0.28998,3451.1,3451.0,2.12988306]
[1735883222182,2.5537604,3451.1,3451.0,2.41987306]
[1735883222973,2.5537604,3451.1,3451.0,2.12988306]
[1735883225380,2.5537604,3451.1,3451.0,2.41987306]
[1735883226085,2.5537604,3451.1,3451.0,2.12988306]
[1735883227583,2.5537604,3451.1,3451.0,2.41987306]
[1735883228379,2.5537604,3451.1,3451.0,2.12988306]
[1735883228782,0.28998,3451.1,3451.0,2.12988306]
[1735883229783,2.5537604,3451.1,3451.0,2.12988306]
[1735883231486,2.2637804,3451.1,3451.0,2.12988306]
[1735883231785,0.28998,3451.1,3451.0,2.12988306]
[1735883232978,2.2637804,3451.1,3451.0,2.12988306]
[1735883233377,2.2637804,3451.1,3451.0,2.41989306]
[1735883234485,2.2637804,3451.2,3451.1,0.29]
[1735883235588,2.2637804,3451.3,3451.0,2.12988306]
[1735883235779,2.2637804,3451.3,3451.2,1.29687306]
[1735883237092,2.5537404,3451.5,3451.4,0.28997]
[1735883237386,2.5537404,3451.5,3451.4,1.29685306]
[1735883237989,2.2637804,3451.5,3451.4,1.29685306]
[1735883239590,3.2078,3451.6,3451.4,1.00688306]
[1735883239888,3.2078,3451.6,3451.5,0.28996]
[1735883245993,2.26814273,3451.8,3451.7,0.28995]
[1735883246293,2.26814273,3451.8,3451.7,2.41883306]
[1735883247686,2.26814273,3452.0,3451.9,0.28993]
[1735883247993,2.55806273,3452.0,3451.9,1.29681306]
[1735883248294,2.26814273,3452.0,3451.9,1.29681306]
[1735883252495,2.55806273,3452.0,3451.9,1.00688306]
[1735883252795,2.55806273,3452.1,3451.9,1.29681306]
[1735883253096,0.28992,3452.0,3451.9,1.00688306]
[1735883253796,0.28993,3451.9,3451.8,0.28993]
[1735883254199,0.28993,3451.9,3451.7,2.41882306]
[1735883254491,5.47594273,3452.0,3451.7,1.122]
[1735883254697,0.28994,3451.8,3451.7,1.122]
[1735883254894,41.08994,3451.8,3451.7,1.122]
[1735883255289,40.8,3451.8,3451.5,1.00688306]
[1735883255496,41.08994,3451.8,3451.7,1.00688306]
[1735883255793,0.28994,3451.8,3451.7,1.00688306]
[1735883258795,2.55808273,3451.8,3451.7,1.00688306]
[1735883258995,2.26814273,3451.8,3451.7,1.29683306]
[1735883260296,2.55808273,3451.8,3451.7,1.00688306]
[1735883262097,2.55808273,3451.8,3451.7,1.29683306]
[1735883263500,2.26814273,3451.8,3451.7,1.29683306]
[1735883265704,2.55808273,3451.8,3451.7,1.29683306]
[1735883267804,2.26814273,3451.8,3451.7,1.29683306]
[1735883268107,3.6921441,3451.9,3451.7,1.29683306]
[1735883268505,3.6921441,3451.9,3451.7,1.00688306]
[1735883268804,3.6921441,3451.9,3451.8,0.28994]
[1735883269001,3.4022141,3451.9,3451.8,0.28994]
[1735883270807,3.2078,3452.0,3451.9,0.28993]
[1735883270999,3.2078,3452.0,3451.9,1.29681306]
[1735883272002,5.47456223,3452.0,3451.9,1.29681306]
[1735883274010,3.2078,3452.0,3451.9,1.29681306]
[1735883276207,3.49772,3452.0,3451.9,1.29681306]
[1735883276706,3.2078,3452.0,3451.6,0.28995]
[1735883276905,3.2078,3452.0,3451.7,1.122]
[1735883277607,40.8,3451.9,3451.7,1.122]
[1735883278110,40.8,3451.9,3451.6,2.12888306]
[1735883278309,0.28994,3451.7,3451.6,2.12888306]
[1735883279709,45.33628546,3451.9,3451.6,2.41883306]
[1735883279912,0.28994,3451.8,3451.6,1.41195]
[1735883280113,4.82622546,3451.8,3451.7,1.00688306]
[1735883281119,4.82622546,3451.8,3451.7,1.29682306]
[1735883282617,4.53628546,3451.8,3451.7,1.29682306]
[1735883285019,7.74408546,3451.8,3451.7,1.29682306]
[1735883285513,4.53628546,3451.8,3451.7,1.29682306]
[1735883286217,3.51758948,3451.8,3451.7,7.30370612]
[1735883286420,3.40901086,3451.9,3451.7,12.30428605]